{"text_format":"1","workbook":"xlsx","n_sheets":4,"sheets":["reestr","Журнал ИБ","Журнал ЗС","Отчет о НП расширенный"],"not_rendered":{"charts":0,"images":0,"macros":1,"external_links":0,"defined_names":0,"comments":0,"pivot_tables":0},"unopened":[],"bounds":{"document_bytes":16777216,"sheet_cells":100000,"rows_first":2000,"rows_last":500,"rows_between":2000,"halvings":0,"cell_chars":16384,"cell_head_chars":4096},"cells_cut":0,"cells_raw":0,"read":"whole","date_system":"1900"}

{"sheet":"reestr","index":0,"n_rows":46,"n_cols":9,"rows_kept":46,"cut":false,"hidden":false,"merged":[]}
["№ п/п","Номенкатурный номер","Участок","Наименование","Тип изделия (серия, фирма, модель, артикул, код ОКПО и т.п.)","НТД (№ чертежа, ГОСТ, ОСТ, ТУ и т.п.)","Тип вагона","Строительная норма, 740/741, (740), (741), шт, (кг), (кг)","Примечание"]
[1,11112548,"к/бр","Авторежим пневм. 100.050-1М ","Авторежим пневматический 100.050-1М","ТУ 3184-054-05756760-2003","81-740/741",1,"Авторежим пневматический 100.050-1М"]
[2,null,null,"Агент сушильный ",null,503329,"81-740/741",8.3000000000000007,"Установка воздушная сушильная  LTZ 015.1H"]
[3,null,null,"Аккумулятор КРL55",null,"ТУ3482-003-05758523-96","81-740/741",52,"Аккумуляторная батарея KPL 55"]
[4,null,null,"Активатор 1010R(ДЮПОН)",null,null,"81-740/741","(в л)","Материалы"]
[5,null,null,"Активатор 11274298 (ДЮПОН)",null,null,"81-740/741","(в л)","Материалы"]
[6,null,null,"Активатор 762R (ДЮПОН)",null,null,"81-740/741","(в кг)","Материалы"]
[7,null,null,"Активатор без фиксации",null,"84-1201.7","81-740/741","18/0"," "]
[8,null,null,"Активатор без фиксации",null,"704.631.1","81-740/741","7/0","Пульт машиниста основной"]
[9,null,null,"Активатор Р72 (ДЮПОН)",null,null,"81-740/741","(в л)","Материалы"]
[10,null,null,"Активатор РСТ ТОР CS 701",null,"ГОСТ 12.1.007-76 ССБТ","81-740/741","(в л)","Материалы"]
[11,null,null,"Активатор с фиксацией",null,"704.632.1","81-740/741","2/0","Пульт машиниста основной"]
[12,null,null,"Амортизатор",null,"720.34.70.024","81-740/741",2,"Автосцепка"]
[13,null,null,"Амортизатор",null,"720.34.70.025","81-740/741",2,"Автосцепка"]
[14,null,null,"Амортизатор BECA",null,"RS 255-3118","81-740/741","4/0","Система видеонаблюдения подвижного состава ( СВНПС )"]
[15,null,null,"Амортизатор пятника",null,"2.7175.31.33.005.00СБ","81-740/741",2,"Ремонт и установка балки центральной (не мотор. тележ)"]
[16,null,null,"Амперметр М42 300 75-075;1,5",null,"ТУ 25-7504.132-97","81-740/741","1/0","Контрольно-измерительные приборы вагона 81-740"]
[17,null,null,"Амперметр М42 300 75-075;1,5",null,"ТУ 25-7504.132-97","81-740/741","0/1","Контрольно-измерительные приборы вагона 81-741"]
[18,null,null,"Антенна \"Шайба-2\"",null,null,"81-740/741","1/0","Радиостанция \"Motorola GP340\""]
[19,null,null,"Антенна портативная NAE6483",null,null,"81-740/741","1/0","Радиостанция \"Motorola GP340\""]
[20,null,null,"Антенна с переходником",null,"70350.02.04","81-740/741","1/0","Автоматическое считывание номера маршрута АСНП-М"]
[21,null,null,"Антивандал",null,"ГОСТ 202-84","81-740/741","(в л)","Материалы"]
[22,null,null,"Аппарат АПП типа 1H9-11/80DC",null,"ВУШК.676853.011","81-740/741","4/0","Светильник кабины машиниста "]
[23,null,null,"Аппарат поглощающий",null,"720.34.72.011","81-740/741","1/0","Автосцепка"]
[24,null,null,"Аппарат поглощающий",null,"7401.34.72.011","81-740/741","1/2","Автосцепка"]
[25,null,null,"Аппарат полупр.пускорег.1H36/80DC",null,"ВУШК.675853.006","81-740/741",16,"Блочно-модульная система освещения \"Световая линия\""]
[26,null,null,"Аппарат полупр.пускорег.1H36/80DC",null,"ВУШК.675853.006","81-740/741",2,"Блочно-модульная система освещения \"Световая линия\""]
[27,null,null,"Аппарат полупр.пускорег.1H36/80DC",null,"ВУШК.675853.006","81-740/741",4,"Блочно-модульная система освещения \"Световая линия\""]
[28,null,null,"Аппарат полупр.пускорег.1H36/80DC",null,"ВУШК.675853.006","81-740/741",2,"Блочно-модульная система освещения \"Световая линия\""]
[29,null,null,"Аппарат полупр.пускорег.1H36/80DC",null,"ВУШК.675853.006","81-740/741",2,"Блочно-модульная система освещения \"Световая линия\""]
[]
[]
[]
[]
[]
[]
[]
[]
[]
[]
[]
[]
[""]
[""]
[""]
[""]

{"sheet":"Журнал ИБ","index":1,"n_rows":5,"n_cols":22,"rows_kept":5,"cut":false,"hidden":false,"merged":[[1,20,2,20],[1,21,2,21],[0,0,0,19],[1,0,1,11],[1,12,1,14],[1,15,1,18],[1,19,2,19]]}
["Журнал изолятора брака"]
["Поступление НП",null,null,null,null,null,null,null,null,null,null,null,"Принятие решения",null,null,"Выдача НП",null,null,null,"Примечание","Дата списания","Дата выхода из красной зоны"]
["№","Дата поступления","№ вагона","Код по НМ","Вид ремонта *","№ карты приемочного контроля/Протокола испытаний**","Наименование изделия","Тип изделия (серия, фирма, модель, артикул, код ОКПО и т.п.)","НТД (№ чертежа, ГОСТ, ОСТ, ТУ и т.п.)","Количество, шт***","ФИО сдавшего на склад","ФИО принявшего на склад","Решение (Р/У/Г/Д)****","№ наряд-заказа *****","№ акта на списание *****","Дата выдачи","Место выдачи (№ цеха, склад)","ФИО выдавшего со склада","ФИО принявшего со склада"]
["1","2","3","4","5","6","7","8","9","10","11","12","13","14","15","16","17","18","19","20","22","23"]
[""]

{"sheet":"Журнал ЗС","index":2,"n_rows":5,"n_cols":19,"rows_kept":5,"cut":false,"hidden":false,"merged":[[0,0,0,15],[1,0,3,0],[1,1,1,10],[1,11,1,14],[1,15,3,15],[2,9,3,9],[2,10,3,10],[2,11,3,11],[2,12,3,12],[2,13,3,13],[2,14,3,14],[1,17,3,17],[1,18,3,18],[2,1,3,1],[2,2,3,2],[2,3,3,3],[2,4,3,4],[2,5,3,5],[2,6,3,6],[2,7,3,7],[2,8,3,8],[1,16,3,16]]}
["Журнал заготовительного склада"]
["№ п/п","Поступление",null,null,null,null,null,null,null,null,null,"Выдача",null,null,null,"Примечание*","Решение (Р/У/Г/Д) по журналу ИБ **","Вид ремонта по журналу ИБ **","Расположение в ЗК"]
[null,"№ по журналу ИБ (при наличии)*","Дата поступления","Код по НМ","Наименование изделия","Тип изделия (серия, фирма, модель, артикул, код ОКПО и т.п.)","НТД (№ чертежа, ГОСТ, ОСТ, ТУ и т.п.)","Цех ремонта/ производства","ФИО сдавшего на контроль","ФИО принявшего по результатам контроля","№ карты приемочного контроля/Протокола испытаний","Дата выдачи продукции","Место установки","ФИО устанавливающего на вагон","ФИО выдавшего со склада"]
[]
["1","2","3","4","5","6","7","8","9","10","11","12","13","14","15","16","17","18","19"]

{"sheet":"Отчет о НП расширенный","index":3,"n_rows":42,"n_cols":17,"rows_kept":42,"cut":false,"hidden":false,"merged":[[22,0,22,15],[0,0,0,15],[2,0,2,14],[2,17,6,20],[3,0,3,14],[4,0,4,15]]}
["Отчет о несоответствующей продукции"]
[]
["Подразделение",null,null,null,null,null,null,null,null,null,null,null,null,null,null,"ТЧ-9"]
["Месяц, год",null,null,null,null,null,null,null,null,null,null,null,null,null,null,2017]
["ИЗОЛЯТОР БРАКА"]
["№","Наименование показателя","Январь","Февраль","Март","Апрель","Май","Июнь","Июль","Август","Сентябрь","Октябрь","Ноябрь","Декабрь","С начала года","Примечание"]
[1,"Всего записей о поступлении",{"$error":"#REF!"},{"$error":"#REF!"},{"$error":"#REF!"},{"$error":"#REF!"},{"$error":"#REF!"},{"$error":"#REF!"},{"$error":"#REF!"},{"$error":"#REF!"},{"$error":"#REF!"},{"$error":"#REF!"},{"$error":"#REF!"},{"$error":"#REF!"},{"$f":"SUM(C7:N7)","v":{"$error":"#REF!"}},"Количество записей о поступившей продукции по Журналу изолятора брака"]
[2,"В буферной зоне",{"$error":"#REF!"},{"$error":"#REF!"},{"$error":"#REF!"},{"$error":"#REF!"},{"$error":"#REF!"},{"$error":"#REF!"},{"$error":"#REF!"},{"$error":"#REF!"},{"$error":"#REF!"},{"$error":"#REF!"},{"$error":"#REF!"},{"$error":"#REF!"},{"$error":"#REF!"},"Количество записей о поступившей продукции без отметки в графе \"решение\" по Журналу изолятора брака"]
[3,"Гарантийные",{"$error":"#REF!"},{"$error":"#REF!"},{"$error":"#REF!"},{"$error":"#REF!"},{"$error":"#REF!"},{"$error":"#REF!"},{"$error":"#REF!"},{"$error":"#REF!"},{"$error":"#REF!"},{"$error":"#REF!"},{"$error":"#REF!"},{"$error":"#REF!"},{"$error":"#REF!"},"Количество записей о продукции с отметкой \"Г\" в графе \"решение\" по Журналу изолятора брака"]
["б/н","Прошло через желтую зону в ремонт",{"$error":"#REF!"},{"$error":"#REF!"},{"$error":"#REF!"},{"$error":"#REF!"},{"$error":"#REF!"},{"$error":"#REF!"},{"$error":"#REF!"},{"$error":"#REF!"},{"$error":"#REF!"},{"$error":"#REF!"},{"$error":"#REF!"},{"$error":"#REF!"},{"$error":"#REF!"},"Количество записей о продукции с отметкой \"Р\" в графе \"решение\" по Журналу изолятора брака","х"]
["б/н","Прошло через желтую зону в ремонт по договору",{"$error":"#REF!"},{"$error":"#REF!"},{"$error":"#REF!"},{"$error":"#REF!"},{"$error":"#REF!"},{"$error":"#REF!"},{"$error":"#REF!"},{"$error":"#REF!"},{"$error":"#REF!"},{"$error":"#REF!"},{"$error":"#REF!"},{"$error":"#REF!"},{"$f":"SUM(C11:N11)","v":{"$error":"#REF!"}},"Количество записей о продукции с отметкой \"Д\" в графе \"решение\" по Журналу изолятора брака","х"]
["б/н","Прошло через желтую зону в ремонт по гарантии",{"$error":"#REF!"},{"$error":"#REF!"},{"$error":"#REF!"},{"$error":"#REF!"},{"$error":"#REF!"},{"$error":"#REF!"},{"$error":"#REF!"},{"$error":"#REF!"},{"$error":"#REF!"},{"$error":"#REF!"},{"$error":"#REF!"},{"$error":"#REF!"},{"$f":"SUM(C12:N12)","v":{"$error":"#REF!"}},"Количество записей о продукции с отметкой \"Г\" в графе \"решение\" по Журналу изолятора брака","х"]
[4,"В желтой зоне в ожидании ремонта",{"$error":"#REF!"},{"$error":"#REF!"},{"$error":"#REF!"},{"$error":"#REF!"},{"$error":"#REF!"},{"$error":"#REF!"},{"$error":"#REF!"},{"$error":"#REF!"},{"$error":"#REF!"},{"$error":"#REF!"},{"$error":"#REF!"},{"$error":"#REF!"},{"$f":"SUM(C13:N13)","v":{"$error":"#REF!"}},"Количество записей по журналу ИБ с отметкой \"Р\" в графе \"Решение\" и отсутствием записи в графе \"Дата выдачи в ремонт\"."]
[5,"В желтой зоне в ожидании ремонта по договору",{"$error":"#REF!"},{"$error":"#REF!"},{"$error":"#REF!"},{"$error":"#REF!"},{"$error":"#REF!"},{"$error":"#REF!"},{"$error":"#REF!"},{"$error":"#REF!"},{"$error":"#REF!"},{"$error":"#REF!"},{"$error":"#REF!"},{"$error":"#REF!"},{"$f":"SUM(C14:N14)","v":{"$error":"#REF!"}},"Количество записей по журналу ИБ с отметкой \"Д\" в графе \"Решение\" и отсутствием записи в графе \"Дата выдачи в ремонт\"."]
[6,"В красной зоне после эксплуатации на подвижном составе",{"$error":"#REF!"},{"$error":"#REF!"},{"$error":"#REF!"},{"$error":"#REF!"},{"$error":"#REF!"},{"$error":"#REF!"},{"$error":"#REF!"},{"$error":"#REF!"},{"$error":"#REF!"},{"$error":"#REF!"},{"$error":"#REF!"},{"$error":"#REF!"},{"$error":"#REF!"},"Количество записей о продукции с отметкой \"У\" в графе \"решение\" и отсутствием отметки \"СП\" в графе \"вид ремонта\" по Журналу изолятора брака "]
[7,"В красной зоне после ремонта",{"$error":"#REF!"},{"$error":"#REF!"},{"$error":"#REF!"},{"$error":"#REF!"},{"$error":"#REF!"},{"$error":"#REF!"},{"$error":"#REF!"},{"$error":"#REF!"},{"$error":"#REF!"},{"$error":"#REF!"},{"$error":"#REF!"},{"$error":"#REF!"},{"$error":"#REF!"},"Количество записей о продукции с отметкой \"Р\" в графе \"решение\" и заполненной графой \"№ акта списания\" по Журналу изолятора брака"]
[8,"В красной зоне из СП",{"$error":"#REF!"},{"$error":"#REF!"},{"$error":"#REF!"},{"$error":"#REF!"},{"$error":"#REF!"},{"$error":"#REF!"},{"$error":"#REF!"},{"$error":"#REF!"},{"$error":"#REF!"},{"$error":"#REF!"},{"$error":"#REF!"},{"$error":"#REF!"},{"$error":"#REF!"},"Количество записей о продукции с отметкой \"СП\" в графе \"вид ремонта\" по Журналу изолятора брака"]
[9,"В красной зоне после ремонта по договору",{"$error":"#REF!"},{"$error":"#REF!"},{"$error":"#REF!"},{"$error":"#REF!"},{"$error":"#REF!"},{"$error":"#REF!"},{"$error":"#REF!"},{"$error":"#REF!"},{"$error":"#REF!"},{"$error":"#REF!"},{"$error":"#REF!"},{"$error":"#REF!"},{"$error":"#REF!"},"Количество записей о продукции с отметкой \"Д\" в графе \"решение\" и заполненной графой \"№ акта списания\"по Журналу изолятора брака"]
[10,"Выдано из желтой зоны ИБ",{"$error":"#REF!"},{"$error":"#REF!"},{"$error":"#REF!"},{"$error":"#REF!"},{"$error":"#REF!"},{"$error":"#REF!"},{"$error":"#REF!"},{"$error":"#REF!"},{"$error":"#REF!"},{"$error":"#REF!"},{"$error":"#REF!"},{"$error":"#REF!"},{"$error":"#REF!"},"Количество записей о продукции с заполненной графой \"дата выдачи\" по Журналу изолятора брака"]
[11,"Остаток на конец месяца в желтой зоне",{"$f":"SUM(C13:C14)","v":{"$error":"#REF!"}},{"$error":"#REF!"},{"$error":"#REF!"},{"$error":"#REF!"},{"$error":"#REF!"},{"$error":"#REF!"},{"$error":"#REF!"},{"$error":"#REF!"},{"$error":"#REF!"},{"$error":"#REF!"},{"$error":"#REF!"},{"$error":"#REF!"},{"$error":"#REF!"},"Количество записей о продукции с отметкой \"Р\" и \"Д\" в графе \"решение\" и отсутствием записи в графе \"дата выдачи\" по Журналу изолятора брака"]
[12,"Остаток на конец месяца в красной зоне",{"$error":"#REF!"},{"$error":"#REF!"},{"$error":"#REF!"},{"$error":"#REF!"},{"$error":"#REF!"},{"$error":"#REF!"},{"$error":"#REF!"},{"$error":"#REF!"},{"$error":"#REF!"},{"$error":"#REF!"},{"$error":"#REF!"},{"$error":"#REF!"},{"$f":"SUM(C21:N21)","v":{"$error":"#REF!"}},"Количество записей о продукции, оставшейся на конец месяца в красной зоне."]
[13,"Остаток на конец месяца",{"$f":"C20+C21","v":{"$error":"#REF!"}},{"$error":"#REF!"},{"$error":"#REF!"},{"$error":"#REF!"},{"$error":"#REF!"},{"$error":"#REF!"},{"$error":"#REF!"},{"$error":"#REF!"},{"$error":"#REF!"},{"$error":"#REF!"},{"$error":"#REF!"},{"$error":"#REF!"},{"$f":"O20+O21","v":{"$error":"#REF!"}},"Количество записей о продукции, оставшейся на конец месяца в красной и желтой зоне."]
["ЗАГОТОВИТЕЛЬНЫЙ СКЛАД"]
["№","Наименование показателя","Январь","Февраль","Март","Апрель","Май","Июнь","Июль","Август","Сентябрь","Октябрь","Ноябрь","Декабрь","С начала года","Примечание"]
[1,"Принято из ремонта",{"$error":"#REF!"},{"$error":"#REF!"},{"$error":"#REF!"},{"$error":"#REF!"},{"$error":"#REF!"},{"$error":"#REF!"},{"$error":"#REF!"},{"$error":"#REF!"},{"$error":"#REF!"},{"$error":"#REF!"},{"$error":"#REF!"},{"$error":"#REF!"},{"$f":"SUM(C25:N25)","v":{"$error":"#REF!"}},"Количество записей о продукции с отсутствием отметки \"СП\" в графе \"№ по журналу ИБ\" и отсутствием отметки \"Д\" в графе \"Решение\" по Журналу заготовительного склада"]
[2,"Принято из ремонта по договору",{"$error":"#REF!"},{"$error":"#REF!"},{"$error":"#REF!"},{"$error":"#REF!"},{"$error":"#REF!"},{"$error":"#REF!"},{"$error":"#REF!"},{"$error":"#REF!"},{"$error":"#REF!"},{"$error":"#REF!"},{"$error":"#REF!"},{"$error":"#REF!"},{"$f":"SUM(C26:N26)","v":{"$error":"#REF!"}},"Количество записей о продукции с отметкой \"Д\" в графе \"Цех ремонта/производства\" в Журнале заготовительного склада "]
[3,"Принято из СП",{"$error":"#REF!"},{"$error":"#REF!"},{"$error":"#REF!"},{"$error":"#REF!"},{"$error":"#REF!"},{"$error":"#REF!"},{"$error":"#REF!"},{"$error":"#REF!"},{"$error":"#REF!"},{"$error":"#REF!"},{"$error":"#REF!"},{"$error":"#REF!"},{"$f":"SUM(C27:N27)","v":{"$error":"#REF!"}},"Количество записей о продукции с отметкой \"СП\" в Журнале заготовительного склада"]
[4,"Всего записей о поступлении",{"$error":"#REF!"},{"$error":"#REF!"},{"$error":"#REF!"},{"$error":"#REF!"},{"$error":"#REF!"},{"$error":"#REF!"},{"$error":"#REF!"},{"$error":"#REF!"},{"$error":"#REF!"},{"$error":"#REF!"},{"$error":"#REF!"},{"$error":"#REF!"},{"$f":"SUM(C28:N28)","v":{"$error":"#REF!"}},"Количество записей о продукции по Журналу заготовительного склада"]
[5,"Выдано со склада",{"$error":"#REF!"},{"$error":"#REF!"},{"$error":"#REF!"},{"$error":"#REF!"},{"$error":"#REF!"},{"$error":"#REF!"},{"$error":"#REF!"},{"$error":"#REF!"},{"$error":"#REF!"},{"$error":"#REF!"},{"$error":"#REF!"},{"$error":"#REF!"},{"$f":"SUM(C29:N29)","v":{"$error":"#REF!"}},"Количество записей о продукции с заполненной графой \"дата выдачи продукции\" в Журнале заготовительного склада"]
[6,"Остаток на конец месяца",{"$f":"C28-C29","v":{"$error":"#REF!"}},{"$error":"#REF!"},{"$error":"#REF!"},{"$error":"#REF!"},{"$error":"#REF!"},{"$error":"#REF!"},{"$error":"#REF!"},{"$error":"#REF!"},{"$error":"#REF!"},{"$error":"#REF!"},{"$error":"#REF!"},{"$error":"#REF!"},{"$error":"#REF!"},"Количество записей о продукции, оставшейся на заготовительном складе на конец месяца"]
[null,null,null,"х","х","х","х","х","х","х","х","х","х","х"]
[null,null,"х",null,"х","х","х","х","х","х","х","х","х","х"]
[null,null,"х","х",null,"х","х","х","х","х","х","х","х","х"]
[null,null,"х","х","х",null,"х","х","х","х","х","х","х","х"]
[null,null,"х","х","х","х",null,"х","х","х","х","х","х","х"]
[null,null,"х","х","х","х","х",null,"х","х","х","х","х","х"]
[null,null,"х","х","х","х","х","х",null,"х","х","х","х","х"]
[null,null,"х","х","х","х","х","х","х",null,"х","х","х","х"]
[null,null,"х","х","х","х","х","х","х","х",null,"х","х","х"]
[null,null,"х","х","х","х","х","х","х","х","х",null,"х","х"]
[null,null,"х","х","х","х","х","х","х","х","х","х",null,"х"]
[null,null,"х","х","х","х","х","х","х","х","х","х","х"]